{"text_format":"1","workbook":"xlsx","n_sheets":5,"sheets":["Contents","Cover","1. F-Factor summary","2. Individual fire start info","3. Systems and Audit"],"not_rendered":{"charts":0,"images":2,"macros":1,"external_links":2,"defined_names":97,"comments":0,"pivot_tables":0},"unopened":[],"bounds":{"document_bytes":16777216,"sheet_cells":100000,"rows_first":2000,"rows_last":500,"rows_between":2000,"halvings":0,"cell_chars":16384,"cell_head_chars":4096},"cells_cut":0,"cells_raw":0,"read":"whole","date_system":"1900"}

{"sheet":"Contents","index":0,"n_rows":19,"n_cols":6,"rows_kept":19,"cut":false,"hidden":false,"merged":[[8,2,9,3],[2,1,2,10],[4,1,4,10]]}
[" "]
[]
[null,"Electricity Distribution Network Service Provider\nF-factor Reporting Template"]
[]
[null,"Table of contents"]
[]
[]
[null,null,"Cover sheet",null,null,"2. Fire start report"]
[]
[]
[]
[null,null,"1. F-factor summary",null,null,"3. Systems and Audit"]
[]
[]
[]
[]
[]
[]
[null,null,{"$f":"\"NOTE: This spreadsheet includes IRU targets up to and including FY\"&'1. F-Factor summary'!J8","v":"NOTE: This spreadsheet includes IRU targets up to and including FY2021/22"}]

{"sheet":"Cover","index":1,"n_rows":49,"n_cols":7,"rows_kept":49,"cut":false,"hidden":false,"merged":[[26,3,26,8],[28,3,28,8],[26,1,26,2],[31,3,31,5],[14,1,14,8],[16,1,16,8],[17,1,17,8],[21,1,21,8],[19,1,19,8],[10,1,11,8],[13,1,13,8],[48,2,48,6],[42,2,42,3],[42,4,42,7],[46,2,46,6],[47,2,47,6],[38,2,38,3],[38,4,38,7],[41,2,41,3],[41,4,41,7],[37,2,37,3],[37,4,37,7],[32,3,32,8],[30,3,30,8],[15,1,15,8]]}
[]
[]
[]
[]
[]
[]
[]
[null,"Distribution Network Service Provider"]
[null,"Fire start report"]
[]
[null,"This template is to be used by a DNSP to provide a fire start report to the AER in accordance with section 5 of the F-factor Order in Council.  "]
[]
[]
[null,"Colour coding of input sheets:"]
[null,"Dark blue = AER headings"]
[null,"Grey = AER instructions"]
[null,"Yellow = Input cells"]
[null,"Light orange = Automatically-generated cells"]
[]
[null,"Leave coloured cells blank if no information exists - PLEASE DO NOT ENTER TEXT unless specifically requested to do so."]
[null,"The cells and structure of the spreadsheet is locked to prevent inadvertent interference with the automated settings."]
[null,"All dollar amounts are to be unrounded, and in nominal terms."]
[]
[]
[]
[]
[null,"DNSP:",null,"United Energy"]
[]
[null,"DNSP - trading name:",null,"United Energy Distribution Pty Ltd"]
[]
[null,"DNSP - Australian business number: ",null,"70 064 651 029"]
[]
[null,"Reporting year:",null,"2021/22"]
[]
[]
[]
[]
[null,"Business address","Address",null,"43 - 45 Centreway"]
[null,null,"Suburb",null,"Mt Waverley"]
[null,null,null,"State","Victoria","Postcode",3149]
[]
[null,"Postal address","Address",null,"P.O Box 449"]
[null,null,"Suburb",null,"Mt Waverley"]
[null,null,null,"State","Victoria","Postcode",3149]
[]
[]
[null,"Contact name/s"]
[null,"Contact phone/s"]
[null,"Contact email address/s"]

{"sheet":"1. F-Factor summary","index":2,"n_rows":14,"n_cols":15,"rows_kept":14,"cut":false,"hidden":false,"merged":[[12,2,12,3],[13,2,13,3],[6,2,6,3],[7,2,7,3],[8,2,8,3],[9,2,9,3],[10,2,10,3],[5,1,5,2],[3,6,3,8],[4,6,4,8],[5,6,5,8],[11,2,11,3]]}
[null,{"$f":"IF(Cover!D27=\"\",\"[DNSP Name]\", Cover!D27)","v":"United Energy"},"IRU target:",{"$f":"IF(SUM(K2:O2)=0,\"\",SUM(K2:O2))","v":19},null,null,null,null,null,null,"AusNet Services","CitiPower","Jemena","Powercor","United Energy"]
[null,"F-factor data reporting","IRU amount:",{"$f":"IF(SUM('2. Individual fire start info'!S38:S2000)=0,\"\",SUM('2. Individual fire start info'!S38:S2000))","v":6.8399999999999981},null,null,null,null,null,"current",{"$f":"IF(OR($B3=\"[Year]\",$B1=\"[DNSP Name]\",$B1<>K1),\"\",LOOKUP($B3,$J3:$J100,K3:K100))","v":""},{"$f":"IF(OR($B3=\"[Year]\",$B1=\"[DNSP Name]\",$B1<>L1),\"\",LOOKUP($B3,$J3:$J100,L3:L100))","v":""},"","",19]
[null,{"$f":"IF(Cover!D33=\"\",\"[Year]\",Cover!D33)","v":"2021/22"},"Revenue adjustment:",{"$f":"IF(OR(D1=\"\",D2=\"\"),\"\",15000*(D1-D2))","v":182400.00000000003},null,null,null,null,null,"2016/17",247.7,3.4,9.6999999999999993,468,22.3]
[null,null,null,null,null,null,null,null,null,"2017/18",247.7,3.4,9.6999999999999993,468,22.3]
[null,"Table 2: Summary of total fire starts by F factor Order definition",null,null,null,null,null,null,null,"2018/19",247.7,3.4,9.6999999999999993,468,22.3]
[null,"This is a summary of data in worksheet \"2. Fire Start Report\"",null,null,null,null,null,null,null,"2019/20",221.1,3.4,9.6999999999999993,412.8,22.3]
[null,"Kind of Fire Start by definition of fire start under clause 5 of F-factor Order","Total fires by cause",null,null,null,null,null,null,"2020/21",177.5,1.3,4.2,277.60000000000002,18.7]
[null,"Started in or originated from a distribution system",{"$f":"COUNTIF('2. Individual fire start info'!$N$38:$N$2000,'1. F-Factor summary'!$B8)","v":55},null,null,null,null,null,null,"2021/22",164.3,1.9,3.7,235.2,19]
[null,"Started by any tree, or part of a tree, falling upon or coming into contact with a distribution system",{"$f":"COUNTIF('2. Individual fire start info'!$N$38:$N$2000,'1. F-Factor summary'!$B9)","v":25}]
[null,"Started by any person, bird, reptile or other animal coming into contact with a distribution system",{"$f":"COUNTIF('2. Individual fire start info'!$N$38:$N$2000,'1. F-Factor summary'!$B10)","v":3}]
[null,"Started by lightning striking a distribution system or a part of a distribution system ",{"$f":"COUNTIF('2. Individual fire start info'!$N$38:$N$2000,'1. F-Factor summary'!$B11)","v":0}]
[null,"Started by any other thing forming part of or coming into contact with a distribution system",{"$f":"COUNTIF('2. Individual fire start info'!$N$38:$N$2000,'1. F-Factor summary'!$B12)","v":3}]
[null,"Otherwise started by a distribution system",{"$f":"COUNTIF('2. Individual fire start info'!$N$38:$N$2000,'1. F-Factor summary'!$B13)","v":0}]
[null,"Total",{"$f":"SUM(C8:C13)","v":86}]

{"sheet":"2. Individual fire start info","index":3,"n_rows":237,"n_cols":25,"rows_kept":237,"cut":false,"hidden":false,"merged":[[3,22,3,24],[4,22,4,24],[5,22,5,24],[7,1,7,21],[11,1,11,2],[9,1,9,21],[13,1,13,11],[22,1,22,21],[24,1,24,21],[14,1,14,20],[15,1,15,18],[16,1,16,18],[18,1,18,18],[21,1,21,18],[19,1,19,18],[23,1,23,18],[20,1,20,18],[17,1,17,18],[25,1,25,18],[27,1,27,20],[26,1,26,21],[35,19,35,21],[33,1,33,4],[35,2,35,10],[28,1,28,18],[29,1,29,18],[35,11,35,13],[35,14,35,17]]}
[null,{"$f":"IF(Cover!D27=\"\",\"[DNSP Name]\", Cover!D27)","v":"United Energy"}]
[null,"F-factor data reporting"]
[null,{"$f":"IF(Cover!D33=\"\",\"[Year]\",Cover!D33)","v":"2021/22"}]
[]
[]
[null,"Instructions:"]
[]
[null,{"$f":"\"Enter into this worksheet fire start data, from any IT system, which have been recorded by \"&IF(Cover!D27=\"\",\"[DNSP Name]\", Cover!D27)&\". Note that fire starts must be in accordance with the definition of a fire start in the Order In Council.\"","v":"Enter into this worksheet fire start data, from any IT system, which have been recorded by United Energy. Note that fire starts must be in accordance with the definition of a fire start in the Order In Council."}]
[]
[null,"\"Fire\" should be interpreted using its common meaning and can be defined as a process in which substances combine chemically with oxygen from the air and typically give out bright light, heat and smoke. A fire should be recorded where there is evidence of smoking, charring, scorching, burning or any other evidence that a fire had occurred.  "]
[]
[null,{"$f":"IF(Cover!D27=\"\",\"[DNSP Name] must provide:\", CONCATENATE(Cover!D27,\" must provide:\"))","v":"United Energy must provide:"}]
[]
[null,"Table 3 - Individual Fire Starts"]
[null,"   (1) Date - dd/mm/yyyy"]
[null,"   (2) Time - if known, the 24-hour time of the fire start hh:mm"]
[null,"   (3) Latitude and longitude of the fire start as decimal coordinates"]
[null,"   (4) Address of the property on which the incident occurred or closest to the incident"]
[null,"   (5) Asset number for the asset nearest the fire start"]
[null,{"$f":"\"   (6) Feeder ID for the polyphase overhead line or underground cable nearest the fire start in the \"&B1&\" network\"","v":"   (6) Feeder ID for the polyphase overhead line or underground cable nearest the fire start in the United Energy network"}]
[null,"   (7) Voltage on the line in which the fire start occurred (note: this may not be the nearest polyphase overhead line)"]
[null,"   (8) Network categorisation - CBD, Urban, Rural Long or Rural Short"]
[null,"   (9) Asset type of primary asset causing fire in accordance with OSIRIS asset categories"]
[null,"   (10) Where the asset involved in the fire is a transformer or an overhead or underground line, provide the phase, or phases, of the line or transformer"]
[null,"   (11) Kind of fire start in accordance with categories specified in Clause 5 of the F-factor Order-In-Council"]
[null,"   (12) Identify the location of the fire start in accordance with the categories specified in Clause 11(b) of the F-factor Order-In-Council"]
[null,"   (13) Provide the BOM fire danger rating applicable at the time of the fire start (data is available on the EM-COP website)"]
[null,{"$f":"\"   (14) \"&IF(Cover!D27=\"\",\"[DNSP Name]\", Cover!D27)&\"'s record number for the incident\"","v":"   (14) United Energy's record number for the incident"}]
[null,"   (15) ESV's OSIRIS reference number for the incident"]
[null,"   (16) Free text description of the fault containing relevant comments from field reports "]
[]
[]
[]
[null,"Table 2: Individual Fire Starts"]
[]
[null,"Number","Fire starts",null,null,null,null,null,null,null,null,"Fire Type",null,null,"Risk Factors",null,null,null,"IRU \namount","Additional information"]
[null,null,"Date 1","Time 2","Latitude 3","Longitude 3","Address of incident 4","ID of \nnearest \nasset 5","ID of nearest \npolyphase \nline 6","Voltage of line in which \nfire start \noccurred 7","Network categorisation 8","Type of primary asset \ninvolved in fire start 9","Phase(s) of \nline or \ntransformer 10","Kind of fire start as per Clause 5\nof F-factor Order-In-Council 11","Location \narea 12","Location\nmultiplier","Fire \ndanger \nrating 13","Danger multiplier","Product of multipliers","DNSP record number 14","OSIRIS \n(ESV) reference \nnumber 15","Fault \ndescription 16"]
[{"$f":"COUNTA(C38:O38,Q38,T38:V38)","v":17},1,"2021-07-06","22:24:00",-37.868951219000003,144.99445818999999,"235 Carlisle St, Balaclava VIC 3183, Australia",2336323,"BC 11","Low voltage AC (<1kV)","Urban"," - connector / termination","three phase","Started in or originated from a distribution system","LBRA only",{"$f":"IF(O38=\"\",\"\",IF(O38=\"LBRA only\",0.2,IF(O38=\"HBRA only\",1,IF(O38=\"within electric line construction area\",19.8,IF(O38=\"within area delineated on plan LEGL./16-354\",4.6,\"\")))))","v":0.2},"No forecast",{"$f":"IF(Q38=\"\",\"\",IF(Q38=\"No forecast\",0.1,IF(Q38=\"Low-moderate\",0.2,IF(Q38=\"High\",0.5,IF(Q38=\"Very high\",1,IF(Q38=\"Severe\",2,IF(Q38=\"Extreme\",3.5,5)))))))","v":0.1},{"$f":"IF(OR(P38=\"\",R38=\"\"),\"\",IF(AND(O38=\"within electric line construction area\",Q38=\"No forecast\"),1,P38*R38))","v":2.0000000000000004E-2},1525540,"20210712UTD_02","UE received a call of a pole fire. On attendance, the crew found the ABC connections in an FSD (Krone Box) had briefly caught fire and were damaged.  Attending field crew replaced damaged connections within the FSD to restore supply to customers.",null,null,"Overhead conductors"]
[17,2,"2021-07-07","09:43:27",-37.977447691999998,145.02332489,"47 First St, Black Rock VIC 3193, Australia",1811535,"BR 04","Low voltage AC (<1kV)","Urban"," - connection box","three phase","Started in or originated from a distribution system","LBRA only",0.2,"No forecast",0.1,2.0000000000000004E-2,1525676,"20210712UTD_03","UE received a call of a pole sparking. On attendance, the fault crew found a pole mounted FMB had caught fire but was out at the time of arrival. The damaged FMB was replaced and supply restored.",null,null," - overhead conductor (bare; aluminium core steel reinforced)"]
[17,3,"2021-07-14","13:00:13",-37.929506371000002,145.12615514000001,"1408 Centre Rd, Clayton South VIC 3169, Australia",637335,"SV 16","22kV AC","Urban"," - dropper / bridge","three phase","Started in or originated from a distribution system","LBRA only",0.2,"No forecast",0.1,2.0000000000000004E-2,1527959,"20210716UTD_01","UE received a call form a customer of a \"pole had yellow flames coming from electrical asset\". On attendance, the UE fault crew found a HV lead to a switch had burnt out. The switch was isolated and the damaged lead was replaced. ",null,null," - overhead conductor (bare; all aluminium conductor)"]
[17,4,"2021-07-23","08:40:00",-38.234229118999998,145.19510892,"1 Clarke Cl, Somerville VIC 3912, Australia",1109061,"HGS33","Low voltage AC (<1kV)","Rural"," - connection box","three phase","Started in or originated from a distribution system","LBRA only",0.2,"No forecast",0.1,2.0000000000000004E-2,1530950,"20210726UTD_01","UE received a report of equipment on a pole on fire. On attendance, the crew found a pole mounted LV FMB had burnt, with some burn marks on the grass at the base of the pole. The attending fault crew isolated the LV cable and replaced the damaged FMB.",null,null," - overhead conductor (bare; copper)"]
[17,5,"2021-07-28","16:58:05",-37.852847953999998,145.08202384000001,"2 Bertram St, Glen Iris VIC 3146, Australia",2310760,"RD 04","Low voltage AC (<1kV)","Urban"," - connection box","three phase","Started in or originated from a distribution system","LBRA only",0.2,"No forecast",0.1,2.0000000000000004E-2,1532869,"20210730UTD_02","UE received a call from FRV of a fire on a pole. On attendance, the fault crew found a 3 phase pole mounted FMB had caught fire. The FMB was replaced.",null,null," - overhead conductor (bare; steel)"]
[17,6,"2021-07-31","18:35:40",-37.999132369999998,145.22756448999999,"14 Claredale Rd, Dandenong VIC 3175, Australia",625101,"DN 06","22kV AC","Urban"," - insulators","three phase","Started in or originated from a distribution system","LBRA only",0.2,"No forecast",0.1,2.0000000000000004E-2,1533801,"20210803UTD_01","Crew attended a location where an angle tied 22kV insulator somehow unscrewed from base causing conductor to rest on crossarm causing a crossarm fire. Crew replaced arm and 2 HV 5 shed insulators. ",null,null," - overhead conductor (ABC)"]
[17,7,"2021-08-02","19:00:28",-38.224615225999997,145.18583751,"4 Stanley St, Somerville VIC 3912, Australia",1109077,"HGS33","Low voltage AC (<1kV)","Rural"," - dropper / bridge","three phase","Started in or originated from a distribution system","LBRA only",0.2,"No forecast",0.1,2.0000000000000004E-2,1534377,"20210805UTD_01","UE received report of a transformer fire. On attendance, the fault crew found the neutral bushing cover had melted  due to a loose connection on the LV neutral lead/dropper. The attending fault crew replaced the neutral connection and cover.",null,null," - overhead conductor (covered uninsulated)"]
[17,8,"2021-08-08","23:58:55",-38.160251479000003,145.11806730000001,"33 The Crest, Frankston South VIC 3199, Australia",3319639,"FSH31","Low voltage AC (<1kV)","Urban"," - underground service cable (residential)","three phase","Started in or originated from a distribution system","LBRA only",0.2,"No forecast",0.1,2.0000000000000004E-2,1535994,"20210811UTD_01","On attendance to a call from the fire authority, the attending UE fault crew found there had been a fire in a service pit. The fault crew instigated repairs to the pit and underground service cable and connections and replace 3X100amp service fuses in pole mounted FMB.",null,null," - overhead conductor (insulated)"]
[17,9,"2021-08-18","13:14:00",-37.983782724999998,145.07112017,"104 Warrigal Rd, Parkdale VIC 3195, Australia",1809081,"M  35","Low voltage AC (<1kV)","Urban"," - connection box","three phase","Started in or originated from a distribution system","LBRA only",0.2,"No forecast",0.1,2.0000000000000004E-2,1538791,"20210820UTD_01","UE was contacted by a customer about a fire on a pole.  On arrival the crew discovered that a pole mounted 3 phase LV Fused Mains Box was severely damage likely due to fire. The attending UE faults crew replaced the FMB and ensured all connections were not damaged.",null,null,"Service lines"]
[17,10,"2021-08-22","14:06:08",-37.792197035999997,145.17527722,"17 Mitcham Rd, Donvale VIC 3111, Australia",7066908,"NW 13","22kV AC","Urban"," - overhead conductor (bare; all aluminium conductor)","three phase","Started by any tree, or part of a tree, falling upon or coming into contact with a distribution system","LBRA only",0.2,"No forecast",0.1,2.0000000000000004E-2,1539634,"20210824UTD_01","After a network operation a customer reported a pole has been sparking and now has caught on fire at the top. On arrival the crew discovered a small tree branch had landed on the exposed connections of a cable head pole which had caused superficial charring of the pole The tree branch was removed.",null,null," - overhead service conductor (residential)"]
[17,11,"2021-09-02","04:18:42",-37.891840827000003,145.1440206,"435-437 Blackburn Rd, Mount Waverley VIC 3149, Australia",8805027,"GW 10","Low voltage AC (<1kV)","Urban"," - lamps (minor road)","single phase","Started in or originated from a distribution system","LBRA only",0.2,"No forecast",0.1,2.0000000000000004E-2,1542458,"20211004UTD_02","Crew attended to reports a streetlight was on fire in Pinewood carpark. On arrival crew isolated the light at the base, and then arranged replacement of the burnt out 150W Sodium.",null,null," - overhead service conductor (commercial / industrial)"]
[17,12,"2021-09-18","08:07:19",-37.847391201000001,145.14292771000001,"4 Royton St, Burwood East VIC 3151, Australia",7037934,"EB 14","22kV AC","Urban"," - overhead conductor (bare; all aluminium conductor)","three phase","Started by any tree, or part of a tree, falling upon or coming into contact with a distribution system","LBRA only",0.2,"No forecast",0.1,2.0000000000000004E-2,1546916,"20210920UTD_02","A large branch from a gum tree in private property fell onto HV OH lines and caught fire. Tree branch was removed from conductor. The feeder protection operated to isolate the section of HV line. The attending fault crew safely removed the branch from the HV OH lines.",null,null," - overhead service conductor (subdivision / construction)"]
[17,13,"2021-09-20","16:44:00",-38.273094862999997,145.00581935,"15 Lempriere Ave, Mount Martha VIC 3934, Australia",1102609,"DMA14","22kV AC","Urban"," - overhead conductor (bare; all aluminium conductor)","three phase","Started by any tree, or part of a tree, falling upon or coming into contact with a distribution system","LBRA only",0.2,"No forecast",0.1,2.0000000000000004E-2,1547400,"20210922UTD_01","A private tree fell and made contact with HV OH lines, with the tree catching fire. After switching was undertaken to isolate the section of line, UE fault crews removed the section of tree making contact with the line. ",null,null," - overhead service conductor (other)"]
[17,14,"2021-09-21","06:42:38",-38.017913047,145.23425777,"Greens Rd/South Gippsland Hwy, Dandenong South VIC 3175, Australia",631789,"DN 24","22kV AC","Urban"," - crossarm (wood)","three phase","Started in or originated from a distribution system","LBRA only",0.2,"No forecast",0.1,2.0000000000000004E-2,1547491,"20210922UTD_02","After an earlier successful re-close event, a patrol of the feeder found a cross-arm fire had occurred. Using Glove and Barrier techniques, the burnt cross-arm was replaced. ",null,null," - underground service cable (residential)"]
[17,15,"2021-10-07","10:32:18",-38.135401764999997,145.12396738999999,"370 Nepean Hwy, Frankston VIC 3199, Australia",3309084,"FTN14","Low voltage AC (<1kV)","Urban"," - connection box","single phase","Started in or originated from a distribution system","LBRA only",0.2,"Low-moderate",0.2,4.0000000000000008E-2,1551173,"20211027UTD_01","FRV reported a fire at a residence, although no flames on attendance the UE crew replaced a white porcelain ph fuse box on the fascia which has burnt out.  ",null,null," - underground service cable (commercial / industrial)"]
[17,16,"2021-10-09","06:46:00",-38.188516636000003,145.16274636,"140 Fultons Rd, Baxter VIC 3911, Australia",3305115,"FSH32","22kV AC","Rural"," - fuse (boric acid)","three phase","Started by any person, bird, reptile or other animal coming into contact with a distribution system","HBRA only",1,"Low-moderate",0.2,0.2,1551690,"20211105UTD_01","UE received report of power flickering. On attendance, the UE fault crew found the BA HV fuses on pole substation Fultons Golflinks had candled, as a result of a possum contact fault. The attending fault crew cleared the fault and replaced the HV fuses. ",null,null," - underground service cable (subdivision / construction)"]
[17,17,"2021-10-12","09:58:44",-38.073079069000002,145.13187289999999,"88 McLeod Rd, Carrum VIC 3197, Australia",3302486,"CRM13","22kV AC","Urban"," - dropper / bridge","three phase","Started in or originated from a distribution system","LBRA only",0.2,"Low-moderate",0.2,{"$f":"IF(OR(P54=\"\",R54=\"\"),\"\",IF(AND(O54=\"within electric line construction area\",Q54=\"No forecast\"),1,P54*R54))","v":4.0000000000000008E-2},1552210,"20211014UTD_01","UE received a report from FRV of a fire on a pole. On attendance, the UE fault crew found no flames present but fire damage to a lead on a pole top capacitor had burnt out.  The supply to the capacitor was isolated and repairs instigated. ",null,null," - underground service cable (other)"]
[17,18,"2021-10-12","12:42:41",-37.944255144000003,145.16940668000001,"718-728 Princes Hwy, Springvale VIC 3171, Australia",622022,"SVW53","Low voltage AC (<1kV)","Urban"," - switch (disconnector/isolator)","single phase","Started in or originated from a distribution system","LBRA only",0.2,"Low-moderate",0.2,4.0000000000000008E-2,1552285,"20211020UTD_01","UE received a call of a pole on fire. On attendance, the UE fault crew found no flames however a Fused Switch Disconnector (krone box)  had melted. The FSD was replaced. ",null,null,"Underground cables"]
[17,19,"2021-10-21","14:52:48",-37.903957345000002,145.04121377999999,"519 North Rd, Ormond VIC 3204, Australia",2327963,"BT 02","11kV AC","Urban"," - underground cable","three phase","Started in or originated from a distribution system","LBRA only",0.2,"Low-moderate",0.2,4.0000000000000008E-2,1555156,"20211028UTD_01","UE received call of a fire on pole. On attendance, the UE fault crew found a HV Cable Head termination had failed and caused some burn damage to the pole.  The faulty section was isolated and repairs instigated under access permit conditions. ",null,null," - underground cable"]
[17,20,"2021-10-23","02:10:00",-38.238484487999997,145.17596617999999,"136A Bungower Rd, Somerville VIC 3912, Australia",1111958,"HGS22","22kV AC","Rural"," - pole (wood)","three phase","Started in or originated from a distribution system","LBRA only",0.2,"Low-moderate",0.2,4.0000000000000008E-2,1555593,"20211027UTD_02","UE fault crew patrolling the line after a fault found a pole fire had occurred at the coach bolt on the 22kV arm. Polymeric fog insulators leaking likely caused fire",null,null," - underground communications cable"]
[17,21,"2021-10-28","08:59:00",-38.472885501,145.01007121000001,"28 King St, Flinders VIC 3929, Australia",1312957,"RBD21","22kV AC","Rural"," - fuse (EDO fuse)","three phase","Started in or originated from a distribution system","LBRA only",0.2,"Low-moderate",0.2,4.0000000000000008E-2,1556853,"20211105UTD_06","On responding to a Low Volts fault, the attending UE fault crew found an EDO fuse had operated but had hung up and was charred on the outside of the barrel.  The EDO fuse was replaced.",null,null,"Poles"]
[17,22,"2021-10-28","23:11:29",-37.866271695000002,145.07578658,"36 Munro Ave, Ashburton VIC 3147, Australia",8802982,"EM 05","11kV AC","Urban"," - overhead conductor (bare; all aluminium conductor)","three phase","Started by any tree, or part of a tree, falling upon or coming into contact with a distribution system","LBRA only",0.2,"Low-moderate",0.2,4.0000000000000008E-2,1557205,"20211105UTD_02","During the storm event UE received a call tree branch on lines which caused a feeder fault, and caught fire. UE fault crews cut the council tree branch clear of the HV lines.",null,null," - pole (concrete)"]
[17,23,"2021-10-29","04:25:50",-37.978851679999998,145.04452950000001,"363 Balcombe Rd, Beaumaris VIC 3193, Australia",1811890,"BR 15","11kV AC","Urban"," - overhead conductor (bare; all aluminium conductor)","three phase","Started by any tree, or part of a tree, falling upon or coming into contact with a distribution system","LBRA only",0.2,"Low-moderate",0.2,4.0000000000000008E-2,1557300,"20211105UTD_05","During the storm event of 29 October, UE received a report of a gum tree branch on OH powerlines catching fire. On attendance, the UE fault crew found a branch from a private gum tree had broken and fallen onto OH HV lines. The UE fault crew removed the branch from the OH lines.",null,null," - pole (steel)"]
[17,24,"2021-10-29","05:52:42",-37.871752178999998,145.17209976000001,"1 Amethyst Ave, Glen Waverley VIC 3150, Australia",605152,"GW 11","Low voltage AC (<1kV)","Urban"," - overhead service conductor (residential)","single phase","Started by any tree, or part of a tree, falling upon or coming into contact with a distribution system","LBRA only",0.2,"Low-moderate",0.2,4.0000000000000008E-2,1557469,"20211105UTD_04","During the storm event of 29 October, UE received a report that a tree on a line had caught fire. On attendance, the UE fault crew found a council tree had fallen onto a service line.  The UE fault crew cut the tree , and replaced the damaged service line.",null,null," - pole (wood)"]
[17,25,"2021-10-29","07:31:00",-38.222703000000003,145.03715600000001,"2 Wellington St, Mornington VIC 3931, Australia",1101153,"MTN34","Low voltage AC (<1kV)","Urban"," - overhead conductor (bare; aluminium core steel reinforced)","three phase","Started by any tree, or part of a tree, falling upon or coming into contact with a distribution system","LBRA only",0.2,"Low-moderate",0.2,4.0000000000000008E-2,1558128,"20211103UTD_09","During the storm event of 29 October, high winds caused council tree to impact the OH LV lines and brought the lines down. The cct fuse did not operate, leaving the line alive, and starting a small grass fire.  The faulty section was isolated and repairs to lines instigated.",null,null,"Crossarms"]
[17,26,"2021-10-29","07:44:00",-37.977630132999998,145.11950655999999,"34 Village Dr, Dingley Village VIC 3172, Australia",608442,"SS 23","22kV AC","Urban"," - overhead conductor (bare; aluminium core steel reinforced)","three phase","Started by any tree, or part of a tree, falling upon or coming into contact with a distribution system","LBRA only",0.2,"Low-moderate",0.2,4.0000000000000008E-2,1558253,"20211103UTD_08","During the storm event of 29 October, a council managed tree fell onto HV OH lines causing a fault. On attendance, the UE fault crew found the tree also displayed some fire damage. The section of line was isolated and the tree was removed from the lines. ",null,null," - crossarm (wood)"]
[17,27,"2021-10-29","08:46:49",-37.863751708000002,145.11817238,"1A Herbert St, Mount Waverley VIC 3149, Australia",2314076,"BW 34","Low voltage AC (<1kV)","Urban"," - overhead conductor (bare; aluminium core steel reinforced)","three phase","Started by any tree, or part of a tree, falling upon or coming into contact with a distribution system","LBRA only",0.2,"Low-moderate",0.2,4.0000000000000008E-2,1558159,"20211116UTD_03","Crew responded to reports pole is on fire.  Crew discovered a large council tree had fallen through the LV conductors and broke an LV intermediate crossarm that required replacement as well as a service line. Crew replaced crossarm and service",null,null," - crossarm (steel)"]
[17,28,"2021-10-29","08:50:23",-37.987344999999998,145.04637399999999,"13 Lileura Ave, Beaumaris VIC 3193, Australia",1810649,"BR 01","11kV AC","Urban"," - overhead conductor (bare; aluminium core steel reinforced)","three phase","Started by any tree, or part of a tree, falling upon or coming into contact with a distribution system","LBRA only",0.2,"Low-moderate",0.2,4.0000000000000008E-2,1558171,"20211125UTD_02","During the storm event of 29 October, there were a number of call for supply issues in Beaumaris area including Lileura Ave and Deauville St. A tree in this area fell onto OH HV and LV lines causing a HVI. At least one UE meter also caught on fire as a result of this event.",null,null," - crossarm (other)"]
[17,29,"2021-10-29","09:05:16",-37.955488308,145.09587051,"162 Kingston Rd, Heatherton VIC 3202, Australia",1814891,"HT 01","22kV AC","Urban"," - overhead conductor (bare; aluminium core steel reinforced)","three phase","Started by any tree, or part of a tree, falling upon or coming into contact with a distribution system","LBRA only",0.2,"Low-moderate",0.2,4.0000000000000008E-2,1558207,"20211116UTD_04","UE received reports from FRV that a transformer was on fire. It seems a branch from a council tree failed during storm conditions and brought down HV conductors. Conductors were isolated and replaced.",null,null,"Overhead assets"]
[17,30,"2021-10-29","12:21:23",-37.988924816000001,145.10571956999999,"11 Japaddy St, Mordialloc VIC 3195, Australia",9661658,"MC 32","22kV AC","Urban"," - overhead conductor (bare; aluminium core steel reinforced)","three phase","Started by any tree, or part of a tree, falling upon or coming into contact with a distribution system","LBRA only",0.2,"Low-moderate",0.2,4.0000000000000008E-2,1559346,"20211105UTD_03","During the storm event of 29 October, a fault on a line caused by a council tree . The customer at 11 Japaddy St reported that the HV fuses at Japaddy 11-Fonceca ground type substation caught fire.The crew removed tree from the OH lines, and replaced the HV fuses at the substation.",null,null," - capacity balancing units"]
[17,31,"2021-10-29","16:47:52",-37.982104999999997,145.031823,"24 Gramatan Ave, Beaumaris VIC 3193, Australia",1811223,"BR 04","11kV AC","Urban"," - overhead conductor (bare; all aluminium conductor)","single phase","Started by any tree, or part of a tree, falling upon or coming into contact with a distribution system","LBRA only",0.2,"Low-moderate",0.2,4.0000000000000008E-2,1560233,"20211125UTD_01","During the storm event of 29 October, a number of incidents were reported of trees on lines and damage to property. A tree fell on the line in Gramatan Ave and caused a HVI to properties in Gramatan Ave and Gareth Ave. There was also a report of a meter fire at 29 Gareth Ave..",null,null," - connector / termination"]
[17,32,"2021-10-29","19:48:43",-38.177850194999998,145.19579112,"42 Bergman Rd, Langwarrin VIC 3910, Australia",3300198,"FSH32","22kV AC","Rural"," - overhead conductor (bare; aluminium core steel reinforced)","three phase","Started by any tree, or part of a tree, falling upon or coming into contact with a distribution system","HBRA only",1,"Low-moderate",0.2,0.2,1562401,"20211116UTD_05","UE crew responded to reports of a loud bang after a branch broke and caught on fire when it fell onto conductors bringing them to the ground.  The conductors we restrung and supply restored",null,null," - dropper / bridge"]
[17,33,"2021-10-29","23:34:08",-38.178426334000001,145.08010687999999,"30 Rendlesham Ave, Mount Eliza VIC 3930, Australia",3313855,"FSH33","22kV AC","Urban"," - overhead conductor (bare; aluminium core steel reinforced)","three phase","Started by any tree, or part of a tree, falling upon or coming into contact with a distribution system","LBRA only",0.2,"Low-moderate",0.2,4.0000000000000008E-2,1561127,"20211116UTD_06","UE crew responded to reports from a customer of a branch caught on fire when it fell onto conductors. Crew removed branch and restored supply",null,null," - guy wire"]
[17,34,"2021-10-30","06:13:26",-38.157700691000002,145.10786335,"19 Bruarong Cres, Frankston South VIC 3199, Australia",3315983,"FSH13","Low voltage AC (<1kV)","Urban"," - overhead conductor (bare; aluminium core steel reinforced)","three phase","Started by any tree, or part of a tree, falling upon or coming into contact with a distribution system","LBRA only",0.2,"Low-moderate",0.2,4.0000000000000008E-2,1561324,"20211105UTD_07","During the storm event of 29 October, a council gum tree fell across the road and onto the OH LV lines. Neighboring residents advised the attending fault crew that at approximately 2100 hrs the night before (29/10), the tree caught fire. Once the tree had been cleared, supplied was restored.",null,null," - insulator tie wires / connections"]
[17,35,"2021-10-30","11:23:00",-38.337305966000002,145.03043965000001,"45 Gibb Rd, Red Hill VIC 3937, Australia",1307650,"DMA15","22kV AC","Rural"," - overhead conductor (bare; all aluminium conductor)","three phase","Started by any tree, or part of a tree, falling upon or coming into contact with a distribution system","HBRA only",1,"Low-moderate",0.2,0.2,1561833,"20211111UTD_01","UE received a report on 30 October of a tree on wires, with wires down and starting a grass fire. It is believed the tree may have fallen as a consequence of the 29 October storm event. UE crews made the site safe and instigated repairs to the line. ",null,null," - insulators"]
[17,36,"2021-10-31","15:09:46",-37.901550815999997,145.12422459999999,"26 Clayton Rd, Clayton VIC 3168, Australia",600192,"NO 07","22kV AC","Urban"," - underground cable","three phase","Started in or originated from a distribution system","LBRA only",0.2,"Low-moderate",0.2,4.0000000000000008E-2,1562696,"20211103UTD_15","On investigation of a feeder fault it was determined that a HV feeder exit cable from a kiosk s/stn which showed obvious fire damage. Cable isolated until kiosk and cable replaced",null,null," - tower"]
[17,37,"2021-11-13","20:08:00",-37.885438258000001,144.99668417000001,"562 New St, Brighton VIC 3186, Australia",2307435,"EW 03","Low voltage AC (<1kV)","Urban"," - switch (disconnector/isolator)","single phase","Started in or originated from a distribution system","LBRA only",0.2,"Low-moderate",0.2,4.0000000000000008E-2,1568835,"20211116UTD_02","UE received a report of a fire on a pole. The attending fault crew found a LV Krone Box had burnt out. The attending fault crew replaced the damaged Krone box",null,null," - traction lines"]
[17,38,"2021-11-14","21:04:00",-38.477914796,145.01869561999999,"197 Wood St, Flinders VIC 3929, Australia",1313281,"RBD21","22kV AC","Rural"," - dropper / bridge","three phase","Started in or originated from a distribution system","LBRA only",0.2,"Low-moderate",0.2,{"$f":"IF(OR(P75=\"\",R75=\"\"),\"\",IF(AND(O75=\"within electric line construction area\",Q75=\"No forecast\"),1,P75*R75))","v":4.0000000000000008E-2},1569045,"20211115UTD_03","On patrolling for a fault, the UE fault crew found the flex from the HV T off had failed and was partially contacting x-arm which caused pole fire. Emergency switching was carried out to isolate the pole and repairs instigated. ",null,null,"Underground assets"]
[{"$f":"COUNTA(C76:O76,Q76,T76:V76)","v":17},39,"2021-11-18","15:25:43",-38.480446356999998,144.95760163,"1749 Boneo Rd, Flinders VIC 3929, Australia",1312619,"RBD21","22kV AC","Rural"," - overhead conductor (bare; aluminium core steel reinforced)","three phase","Started by any tree, or part of a tree, falling upon or coming into contact with a distribution system","HBRA only",{"$f":"IF(O76=\"\",\"\",IF(O76=\"LBRA only\",0.2,IF(O76=\"HBRA only\",1,IF(O76=\"within electric line construction area\",19.8,IF(O76=\"within area delineated on plan LEGL./16-354\",4.6,\"\")))))","v":1},"Low-moderate",{"$f":"IF(Q76=\"\",\"\",IF(Q76=\"No forecast\",0.1,IF(Q76=\"Low-moderate\",0.2,IF(Q76=\"High\",0.5,IF(Q76=\"Very high\",1,IF(Q76=\"Severe\",2,IF(Q76=\"Extreme\",3.5,5)))))))","v":0.2},0.2,1570667,"20211119UTD_01","In high winds, a branch from a private tree fell onto HV and LV lines, caused a 50sqm grass fire and possibly HVI. The section was isolated and the branch removed from the lines. Repairs were instigated to the network, as well as procedures for HVI response enacted. ",null,null," - LV pillar"]
[17,40,"2021-12-01","12:59:00",-37.893556961000002,145.17820824,"2 Halcyon Dr, Wheelers Hill VIC 3150, Australia",8805272,"GW 07","Low voltage AC (<1kV)","Urban"," - LV pillar","three phase","Started in or originated from a distribution system","LBRA only",0.2,"Low-moderate",0.2,4.0000000000000008E-2,1574821,"20211203UTD_05","UE was advised by MFB of a fire at a pillar. On arrival, fault crews confirmed there was a fire at a LV pillar.  Closest pole is a URD street light pole.  Fault crews isolated supply to the pillar and the site was made safe. Supply was restored to customers through LV parallels while repairs were undertaken. ",null,null," - services pit"]
[17,41,"2021-12-02","21:15:43",-38.002008429999997,145.14263586999999,"7 Alana Ct, Keysborough VIC 3173, Australia",634400,"NP 34","22kV AC","Urban"," - pole (wood)","single phase","Started in or originated from a distribution system","LBRA only",0.2,"Low-moderate",0.2,4.0000000000000008E-2,1575876,"20211203UTD_04","UE was advised by MFB of a pole fire. On arrival, fault crews confirmed the HV centre phase fuse unit was tracking to the pole and caused a fire.  Fault crews replaced the pole. ",null,null,"Transformers"]
[17,42,"2021-12-08","20:23:12",-37.796973127999998,145.14282985,"614 Middleborough Rd, Blackburn North VIC 3130, Australia",7061581,"DC-TSTS No1 66kV","66kV AC","Urban"," - overhead conductor (bare; all aluminium conductor)","three phase","Started by any tree, or part of a tree, falling upon or coming into contact with a distribution system","LBRA only",0.2,"Low-moderate",0.2,4.0000000000000008E-2,1577719,"20211213UTD_01","A large pine failed at root system tree fell onto 66kV lines in Koonung Creek and caught fire. The section of line was isolated and the tree removed from the conductors under access permit conditions. ",null,null," - transformer (pole mounted)"]
[17,43,"2021-12-13","00:59:05",-37.903999138000003,145.00464865000001,"1 Grandview Rd, Brighton VIC 3186, Australia",2307839,"NB 34","11kV AC","Urban"," - surge diverter","three phase","Started in or originated from a distribution system","LBRA only",0.2,"High",0.5,0.1,1578659,"20211214UTD_01","UE received a call from the MFB advising of a small pole fire. The pole in question has an underground cable head termination, where it appears one of the Lightning Arrestors has failed and burnt the outside surface of the pole. Attending fault crew isolated the section of line, and cut away lightning arrestors.",null,null," - transformer (kiosk mounted)"]
[17,44,"2021-12-19","14:48:00",-38.207624084999999,145.19162582999999,"81A Lower Somerville Rd, Baxter VIC 3911, Australia",3300830,"FSH32","22kV AC","Rural"," - fuse (boric acid)","three phase","Started in or originated from a distribution system","HBRA only",1,"Low-moderate",0.2,0.2,1581233,"20211221UTD_01","On patrolling feeder for a fault caused by bark on the line, two upstream in-line HV fuses had operated, with one found to have candled. The bark was removed from the line and the HV fuses replaced.",null,null," - transformer (ground outdoor mounted)"]
[17,45,"2021-12-20","08:07:16",-37.860153335,145.15337459,"536 Highbury Rd, Glen Waverley VIC 3150, Australia",600120,"EB 13","22kV AC","Urban"," - crossarm (wood)","three phase","Started in or originated from a distribution system","LBRA only",0.2,"Low-moderate",0.2,4.0000000000000008E-2,1581634,"20211221UTD_05","In response to reports of a broken cross-arm, UE fault crews found a cross-arm fire had occurred. Emergency switching to isolate the section of line was performed, and repairs instigated. ",null,null," - transformer (indoor chamber mounted)"]
[17,46,"2021-12-20","20:20:54",-37.878349356999998,145.01638919000001,"193 Kooyong Rd, Caulfield North VIC 3161, Australia",2302810,"EL 33","11kV AC","Urban"," - overhead conductor (bare; aluminium core steel reinforced)","three phase","Started by any tree, or part of a tree, falling upon or coming into contact with a distribution system","LBRA only",0.2,"Low-moderate",0.2,4.0000000000000008E-2,1581927,"20211221UTD_04","UE received a report of a large tree in contact with powerlines. On attendance, crew found fire damage to the tree. The section of line was isolated and arrangement made for urgent pruning of the tree.",null,null," - transformer (any other type)"]
[17,47,"2021-12-21","12:43:46",-38.369697185,144.77024885,"113 St Johns Wood Rd, Blairgowrie VIC 3942, Australia",1304602,"STO21","Low voltage AC (<1kV)","Rural"," - connection box","three phase","Started in or originated from a distribution system","HBRA only",1,"Low-moderate",0.2,0.2,1582191,"20211222UTD_01","UE received a call from a customer of a fire and sparking on a pole. On attendance, the UE fault crew found an LV FOLCB on the pole had burnt out. The fault crew replaced the FOLCB",null,null," - measurement transformer (current transformer)"]
[17,48,"2021-12-31","15:01:00",-37.908824772000003,145.00319482,"26 Durrant St, Brighton VIC 3186, Australia",1805786,"NB 33","Low voltage AC (<1kV)","Urban"," - overhead conductor (bare; all aluminium conductor)","three phase","Started in or originated from a distribution system","LBRA only",0.2,"Very High",1,0.2,1583704,"20220104UTD_01","UE received a call from a passer by who extinguished a small grass fire and reported a wire on the  ground.  When crew arrived the Blue Ph conductor had failed at a bridge connection and confirmed small burn marks on grass.  Conductor repaired supply and replaced 250A BPh fuse.",null,null," - measurement transformer (voltage transformer)"]
[17,49,"2022-01-02","23:20:55",-38.165045818999999,145.18946109000001,"186 North Rd, Langwarrin VIC 3910, Australia",3301659,"FSH21","22kV AC","Rural"," - fuse (boric acid)","three phase","Started in or originated from a distribution system","LBRA only",0.2,"High",0.5,0.1,1584018,"20220105UTD_01","FRV contacted UE and advised of reports of a fire. On attendance the fault crew discovered the 65Amp Red Phase B/A fuse had candled and caused a small 1msq grass fire under the pole. The fire was out on arrival. Fuses replaced supply restored",null,null," - measurement transformer (capacitive voltage transformer)"]
[17,50,"2022-01-04","16:16:43",-38.435177107999998,144.90577059,"Grasslands Rd, Cape Schanck VIC 3939, Australia",1312413,"RBD21","12.7kV AC (SWER)","Rural"," - pole (wood)","single wire earth return (SWER)","Started in or originated from a distribution system","HBRA only",1,"Low-moderate",0.2,0.2,1584293,"20220105UTD_02","Crew responded to reports fire on top of pole, on arrival they discovered a pole fire on the SWER caused by glass disk leakage into pole through the eyebolt. The crew organised a replacement anchor pole under EAP. ",null,null,"Fuses and switchgear"]
[17,51,"2022-01-06","18:54:00",-38.417334001,145.07714645999999,"6 Western Parade, Point Leo VIC 3916, Australia",1308325,"DMA15","22kV AC","Rural"," - crossarm (wood)","three phase","Started in or originated from a distribution system","HBRA only",1,"Low-moderate",0.2,0.2,1584667,"20220114UTD_05","HV xarm was broken and there was evidence of fire on the xarm. HV conductors were hanging low and close to LV conductors.  The site was made safe and fault crews replaced the HV xarm under emergency switching. ",null,null," - fuse (boric acid)"]
[17,52,"2022-01-19","13:57:00",-37.918507050000002,145.174904,"219 Brandon Park Dr, Wheelers Hill VIC 3150, Australia",620670,"MGE22","Low voltage AC (<1kV)","Urban"," - crossarm (wood)","three phase","Started by any tree, or part of a tree, falling upon or coming into contact with a distribution system","LBRA only",0.2,"High",0.5,0.1,1588006,"20220121UTD_02","UE received a report of loss of supply to customers and that a tree has fallen onto a pole and broke the cross-arm, resulting in a small grass fire. The attending fault crew isolated the LV circuit and instigated repairs.",null,null," - fuse (EDO fuse)"]
[17,53,"2022-01-19","18:55:23",-38.183165660999997,145.10586474999999,"37 Bareena Dr, Mount Eliza VIC 3930, Australia",3311738,"FSH13","22kV AC","Urban"," - overhead conductor (bare; all aluminium conductor)","three phase","Started by any tree, or part of a tree, falling upon or coming into contact with a distribution system","LBRA only",0.2,"High",0.5,0.1,1588140,"20220121UTD_01","In response to an ACR operation, UE crews responding when a report was received of a tree branch falling onto powerlines and catching fire. On attendance, fault crew found a tree branch on the ground under HV and LV conductors with signs of burning. No damage was visible on conductors.",null,null," - fuse (Fault Tamer)"]
[17,54,"2022-01-20","12:10:03",-37.984671204000001,145.23927519,"47 Rowan Dr, Doveton VIC 3177, Australia",627597,"DN 13","Low voltage AC (<1kV)","Urban"," - overhead service conductor (commercial / industrial)","three phase","Started by any other thing forming part of or coming into contact with a distribution system","LBRA only",0.2,"High",0.5,0.1,1588339,"20220121UTD_04","An ABC service supplying a group of shops was hit by a truck. The UE fault crew confirmed there was a small fire on the grass as a result of ABC cable being hit. Service line was replaced and engagement with the property owner to raise the POA to a height to improve the height of the ABC across the road. ",null,null," - fuse (powder filled)"]
[17,55,"2022-01-20","18:07:00",-38.101596731000001,145.19006798000001,"153 Hall Rd, Carrum Downs VIC 3201, Australia",8813820,"FTN23","22kV AC","Urban"," - connector / termination","three phase","Started in or originated from a distribution system","LBRA only",0.2,"High",0.5,0.1,1588467,"20220131UTD_01","A fault crew responded to reports of dim lights and on investigation discovered that the red phase line side dropper connection had failed at the ACR bushing. This resulted in molten metal igniting a small grass fire underneath the structure. The connection was repaired",null,null," - fuse (any other type)"]
[17,56,"2022-01-22","11:41:54",-37.901721221999999,145.21745213,"97 Ferntree Gully Rd, Scoresby VIC 3179, Australia",615518,"MGE21","22kV AC","Urban"," - connector / termination","three phase","Started in or originated from a distribution system","LBRA only",0.2,"High",0.5,0.1,1588960,"20220124UTD_03","On responding to a supply outage, the attending UE fault crew found a HV connection had failed and appears to have resulted in a small ground fire.  The section of line was isolated and repairs instigated to the failed connection. Assets on the pole were also inspected for any damage.",null,null," - circuit breaker"]
[17,57,"2022-01-23","16:23:00",-38.305526270000001,145.17873546000001,"16 Warren Cres, Hastings VIC 3915, Australia",1110421,"HGS21","Low voltage AC (<1kV)","Rural"," - connector / termination","three phase","Started in or originated from a distribution system","LBRA only",0.2,"High",0.5,0.1,1589141,"20220131UTD_02","Crew were sent to an outage and on arrival discovered a LV isolator connection had failed dropping molten metal onto the ground underneath which ignited a small grass fire. The blue phase sub bus isolator was replaced.",null,null," - switch (disconnector/isolator)"]
[17,58,"2022-01-23","16:59:23",-37.905343471000002,145.13082736000001,"19 Normanby Rd, Notting Hill VIC 3168, Australia",612867,"NO 31","22kV AC","Urban"," - overhead conductor (bare; all aluminium conductor)","three phase","Started by any tree, or part of a tree, falling upon or coming into contact with a distribution system","LBRA only",0.2,"High",0.5,0.1,1589154,"20220124UTD_02","A tree branch was found lodged between top and tee cross-arms, and appears to have burnt at some stage and ignited a small ground fire. The section of line was isolated and the branch removed, and assets inspected for damage. ",null,null," - switch (earth)"]
[17,59,"2022-01-23","20:56:00",-37.773814076000001,145.08991029000001,"49 Cuthbert St, Bulleen VIC 3105, Australia",7056972,"WD 36","Low voltage AC (<1kV)","Urban"," - connector / termination","three phase","Started in or originated from a distribution system","LBRA only",0.2,"High",0.5,0.1,1589169,"20220124UTD_01","UE received a call from a customer advising of a fire at the base of a pole. On attendance, the UE fault crew found a burnt out LV D-clamp that appears to have caused the minor fire. The fault crew replaced the connections.",null,null," - switch (FuseSaver)"]
[17,60,"2022-01-25","12:29:28",-37.925540515999998,145.21140678,"Eastlink/Wellington Rd, Rowville VIC 3178, Australia",624928,"MGE32","22kV AC","Urban"," - overhead conductor (bare; all aluminium conductor)","three phase","Started by any person, bird, reptile or other animal coming into contact with a distribution system","LBRA only",0.2,"High",0.5,0.1,1589673,"20220128UTD_02","On patrolling feeder MGE32 after a reclose event, UE fault crew found a possum had made contact with the centre phase HV dropper on CHP termination, and resulted in a grass fire at the base of the pole. The section of HV was isolated and repairs instigated to the termination ",null,null," - switch (any other type)"]
[17,61,"2022-01-25","16:37:00",-38.262939404000001,145.01811022999999,"3 Victoria Cres, Mount Martha VIC 3934, Australia",1102485,"MTN31","Low voltage AC (<1kV)","Urban"," - connection box","three phase","Started in or originated from a distribution system","LBRA only",0.2,"High",0.5,0.1,1589752,"20220228UTD_04","UE faults crew responded to a customer report of fire and smoke form a pole top. There was no fire on arrival however the extent of damage to the 3 phase FM Box indicated that a fire was likely. The box was replaced and supply restored",null,null,"SCADA, network control and protection systems"]
[17,62,"2022-01-26","16:45:30",-38.081744368000003,145.12630523000001,"51B Kalimna St, Carrum VIC 3197, Australia",3302576,"CRM23","Low voltage AC (<1kV)","Urban"," - connector / termination","three phase","Started in or originated from a distribution system","LBRA only",0.2,"High",0.5,0.1,1589909,"20220128UTD_01","UE received report from Fire Authority of burning metal falling from pole. On attendance, the UE fault crew found an LV ampact connector to a isolator had burnt out, with molten metal falling and burning the grass at the base of the pole. The faulted LV connector was replaced. ",null,null," - audio frequency load controller (AFLC)"]
[17,63,"2022-01-27","17:03:12",-38.224640235999999,145.15965179,"32 Clarendon Dr, Somerville VIC 3912, Australia",1104156,"HGS22","Low voltage AC (<1kV)","Rural"," - connector / termination","three phase","Started in or originated from a distribution system","LBRA only",0.2,"High",0.5,0.1,1590458,"20220128UTD_04","An insulation piercing connector failed and dropped hot particles to the ground with minor burning on the ground. The attending fault crew replaced the damaged connector.",null,null," - arc suppresion coil"]
[17,64,"2022-01-27","23:51:49",-37.908738683000003,145.07961703000001,"1069 North Rd, Hughesdale VIC 3166, Australia",2320647,"OR 23","11kV AC","Urban"," - crossarm (wood)","three phase","Started in or originated from a distribution system","LBRA only",0.2,"High",0.5,0.1,1590561,"20220128UTD_03","UE received a report from the fire authority of a street light on fire. On attendance, the UE fault crew found the end of a HV cross-arm was burnt. The section of HV was isolated and the damaged cross-arm was replaced under access authority conditions.",null,null," - automatic circuit recloser (ACR)"]
[17,65,"2022-01-28","17:04:34",-37.989047290000002,145.24713914,"18 Sheoak St, Doveton VIC 3177, Australia",619312,"DN 10","Low voltage AC (<1kV)","Urban"," - connector / termination","single phase","Started in or originated from a distribution system","LBRA only",0.2,"Low-moderate",0.2,4.0000000000000008E-2,1591046,"20220203UTD_02","UE crew were called to a premises due to reports of a fire in a meterbox. On arrival they removed a 501 meter that looks to have shorted out and caused a small fire.  The crew issued defect on fire damaged meter board.",null,null," - communications linear assets"]
[17,66,"2022-01-30","19:13:14",-37.773814076000001,145.08991029000001,"49 Cuthbert St, Bulleen VIC 3105, Australia",7056972,"WD 36","Low voltage AC (<1kV)","Urban"," - switch (disconnector/isolator)","three phase","Started in or originated from a distribution system","LBRA only",0.2,"Low-moderate",0.2,4.0000000000000008E-2,1591500,"20220203UTD_01","UE crew responded to a call of a fire underneath a pole....on arrival the discovered a sparking white phase fused isolator caused small grass fire under pole. Replaced white phase fused isolator and 315amp hrc fuse.",null,null," - communications network assets"]
[17,67,"2022-02-11","01:29:44",-37.898326507,145.07596939000001,"209 Poath Rd, Murrumbeena VIC 3163, Australia",2314549,"OR 35","11kV AC","Urban"," - switch (disconnector/isolator)","three phase","Started by any other thing forming part of or coming into contact with a distribution system","LBRA only",0.2,"High",0.5,0.1,1594590,"20220214UTD_03","In the early hours of the morning, a car hit a pole causing HV lines to make contact with LV lines, resulting in a HVI which included a Krone box catching fire. The section of circuit was isolated and procedures for response to HVI were instigated",null,null," - communications site infrastructure"]
[17,68,"2022-02-13","16:53:11",-37.887479532999997,145.15959090999999,"2 Ada St, Glen Waverley VIC 3150, Australia",607135,"GW 04","22kV AC","Urban"," - overhead conductor (bare; all aluminium conductor)","three phase","Started by any other thing forming part of or coming into contact with a distribution system","LBRA only",0.2,"Very High",1,0.2,1595077,"20220214UTD_07","A balloon made contact with OH HV lines with embers falling across the road and created a small grass fire.  The OH lines were inspected for damage. ",null,null," - field devices"]
[17,69,"2022-02-14","03:50:30",-37.819674552999999,145.14882774,"15 Railway Rd, Blackburn VIC 3130, Australia",7030407,"NW 11","Low voltage AC (<1kV)","Urban"," - switch (disconnector/isolator)","three phase","Started in or originated from a distribution system","LBRA only",0.2,"High",0.5,0.1,1595126,"20220224UTD_03","UE received report from Fire authority of a pole fire. On attendance, the fault crew found a 3 phase Krone box had failed. The attending fault crew replaced the damaged Krone box",null,null," - local network wiring assets"]
[17,70,"2022-02-21","03:43:29",-37.871423833999998,145.05975649999999,"95 Paxton St, Malvern East VIC 3145, Australia",2332821,"EM 06","Low voltage AC (<1kV)","Urban"," - connector / termination","single phase","Started in or originated from a distribution system","LBRA only",0.2,"Low-moderate",0.2,{"$f":"IF(OR(P107=\"\",R107=\"\"),\"\",IF(AND(O107=\"within electric line construction area\",Q107=\"No forecast\"),1,P107*R107))","v":4.0000000000000008E-2},1596938,"20220222UTD_02","A simpi crimp at POA failed and caused a small fire to wooden dog house located underneath. The attending fault crew repaired the connections at the POA",null,null," - master station assets"]
[17,71,"2022-02-28","23:13:00",-38.337426080999997,145.10694692000001,"3 Turners Rd, Balnarring VIC 3926, Australia",1112119,"HGS23","12.7kV AC (SWER)","Rural"," - fuse (boric acid)","single wire earth return (SWER)","Started in or originated from a distribution system","HBRA only",1,"Low-moderate",0.2,0.2,1599095,"20220307UTD_01","On patrolling the feeder for a fault, the attending UE fault crew found the HV BA fuse at French No 3 Bittern SWER pole substation had candled. The crew replaced the candles fuse",null,null," - neutral earthing resistor"]
[17,72,"2022-03-01","05:51:17",-38.003655631000001,145.25364722,"70 Princes Hwy Service Rd, Hallam VIC 3803, Australia",8813430,"DN 04","22kV AC","Urban"," - overhead conductor (bare; all aluminium conductor)","three phase","Started by any person, bird, reptile or other animal coming into contact with a distribution system","LBRA only",0.2,"Low-moderate",0.2,4.0000000000000008E-2,1599108,"20220303UTD_01","In patrolling a HV line after a feeder CB reclose, the UE fault crew found a possum had caused the fault on the HV and fell to the ground, with evidence of a small grass fire at that location. The assets on the pole were inspected for damage and notifications raised for minor repairs. ",null,null," - oil-filled circuit recloser (OCR)"]
[17,73,"2022-03-02","13:31:00",-38.392281705999999,144.81684014000001,"151-171 Dundas St, Rye VIC 3941, Australia",1305059,"STO14","22kV AC","Rural"," - fuse (powder filled)","three phase","Started in or originated from a distribution system","HBRA only",1,"Low-moderate",0.2,0.2,1599677,"20220307UTD_02","A UE fault crew patrolling the section of feeder for a fault found a 5 amp HV PF fuse at Dundas-Brown pole substation had candled. The candled fuse was replaced.",null,null," - rapid earth fault current limiter (REFCL)"]
[17,74,"2022-03-17","16:17:34",-37.942088843999997,145.03992527,"70 Worthing Rd, Moorabbin VIC 3189, Australia",1819716,"MR 11","Low voltage AC (<1kV)","Urban"," - switch (disconnector/isolator)","three phase","Started in or originated from a distribution system","LBRA only",0.2,"Low-moderate",0.2,4.0000000000000008E-2,1604093,"20220404UTD_01","UE received report from Fire authority of a pole fire. On attendance, the fault crew found a 3 phase Krone box had failed and looked to have fire damage. The attending fault crew replaced the damaged Krone box",null,null," - surge diverter"]
[17,75,"2022-03-21","06:29:00",-38.270904045999998,145.14301172,"180 Coolart Rd, Moorooduc VIC 3933, Australia",1111403,"MTN32","22kV AC","Rural"," - fuse (boric acid)","three phase","Started in or originated from a distribution system","HBRA only",1,"Low-moderate",0.2,0.2,1604803,"20220323UTD_01","UE was advised by a customer of flickering lights and abnormal voltage behaviour was detected by the network analytics program. Upon inspection of the pole substation, the crews found the HV fuse had candled and a dead bird at the base of the pole. Crews replaced the fuse.",null,null," - voltage regulator"]
[17,76,"2022-03-21","14:29:44",-38.230469403000001,145.06976209000001,"397 Racecourse Rd, Mornington VIC 3931, Australia",8830978,"MTN21","Low voltage AC (<1kV)","Urban"," - connection box","three phase","Started in or originated from a distribution system","LBRA only",0.2,"High",0.5,0.1,1605032,"20220322UTD_05","UE was advised by an REC that a phase has dropped out. On arrival, fault crews found a white phase LV fuse was blown at the pole substation and a melted 3 phase FMB on the pole end with signs of fire damage.  Fault crews replaced the FMB on the pole and the fuse at the pole substation. ",null,null,"Public lighting"]
[17,77,"2022-04-07","12:41:38",-38.081179912000003,145.16469261,"Frankston Australia Clay Targets Club, 123 Rossiter Rd, Carrum Downs VIC 3201, Australia",3304600,"CRM34","22kV AC","Rural"," - overhead conductor (bare; all aluminium conductor)","three phase","Started by any tree, or part of a tree, falling upon or coming into contact with a distribution system","HBRA only",1,"Low-moderate",0.2,0.2,1609993,"20220408UTD_01","UE was advised by a customer that a gum tree branch had fallen onto mains wires which started sparking and caused a small grass fire. On arrival, fault crews confirmed there was a small grass fire approximately 4m x 5m. Fault crews removed the branch and supply was restored. ",null,null," - brackets (major road)"]
[17,78,"2022-04-08","09:57:45",-38.420684915000002,144.86554204999999,"214 Maxwell Rd, Fingal VIC 3939, Australia",1306101,"STO21","22kV AC","Rural"," - fuse (boric acid)","three phase","Started in or originated from a distribution system","HBRA only",1,"Low-moderate",0.2,0.2,1610205,"20220412UTD_02","In response to calls of low volts, the UE fault crew found the 6 Amp BA HV fuse had candled. The attending crew replaced the fuse, restoring supply.",null,null," - brackets (minor road)"]
[17,79,"2022-04-22","01:26:00",-38.382942671000002,145.17027658000001,"48 Sandy Point Rd, Somers VIC 3927, Australia",1108920,"HGS21","22kV AC","Rural"," - fuse (boric acid)","three phase","Started in or originated from a distribution system","HBRA only",1,"Low-moderate",0.2,0.2,1613757,"20220426UTD_03","In patrolling for a fault after feeder protection operations, the UE fault crew found a BA HV fuse had candled.  The fault crew isolated the section of the HV circuit and instigated replacement of the fuse unit",null,null," - lamps (major road)"]
[17,80,"2022-05-08","14:08:00",-37.971721869,145.01459901000001,"6A Glenmore Cres, Black Rock VIC 3193, Australia",1817407,"BR 13","Low voltage AC (<1kV)","Urban"," - connection box","three phase","Started in or originated from a distribution system","LBRA only",0.2,"No forecast",0.1,2.0000000000000004E-2,1617352,"20220509UTD_01","I response to call from fire authority re a pole fire, the attending UE fault crew found a pole mounted FMB had caught fire.  The damaged FMB was replaced.",null,null," - lamps (minor road)"]
[17,81,"2022-05-13","22:32:48",-38.383853868000003,145.03831657000001,"23 Callanans Rd, Red Hill South VIC 3937, Australia",1307926,"DMA15","Low voltage AC (<1kV)","Rural"," - switch (disconnector/isolator)","three phase","Started in or originated from a distribution system","HBRA only",1,"Low-moderate",0.2,0.2,1618837,"20220602UTD_01","A customer reported that there was a small fire burning near the top of pole . Crew arrived, there was no fire present however they replaced a burnt out lv krone box ",null,null," - luminaires (major road)"]
[17,82,"2022-05-24","08:49:00",-37.915857956000004,145.01426794,"2A Billson St, Brighton East VIC 3187, Australia",1835595,"NB 36","Low voltage AC (<1kV)","Urban"," - switch (disconnector/isolator)","three phase","Started in or originated from a distribution system","LBRA only",0.2,"No forecast",0.1,2.0000000000000004E-2,1621085,"20220526UTD_01","FRV reported a fire on a pole top.  On arrival the crew discovered a krone box severely damaged by a likely fire event. Krone box replaced, supply restored",null,null," - luminaires (minor road)"]
[17,83,"2022-05-31","09:08:27",-38.205147410000002,145.08868389,"90 Tower Rd, Mount Eliza VIC 3930, Australia",3312970,"MTN22","22kV AC","Rural"," - overhead conductor (bare; all aluminium conductor)","three phase","Started by any tree, or part of a tree, falling upon or coming into contact with a distribution system","LBRA only",0.2,"No forecast",0.1,2.0000000000000004E-2,1622857,"20220601UTD_02","In response to a CB reclose event, the patrolling fault crew found a tree branch private tree had fallen onto HV conductors and had burned foliage before falling to the ground.  The lines were inspected for damage and the circuit restored to normal service.",null,null," - poles / columns (major road)"]
[17,84,"2022-06-04","21:30:37",-38.371031985000002,144.92864470000001,"42-44 St Andrews Ave, Rosebud VIC 3939, Australia",1311196,"RBD24","22kV AC","Urban"," - crossarm (wood)","three phase","Started in or originated from a distribution system","LBRA only",0.2,"No forecast",0.1,2.0000000000000004E-2,1624299,"20220606UTD_01","The local CFA reported a pole fire, on arrival crew discovered a Centre Ph grey fog insulator had cracked igniting the top of pole and crossarm.  Crossarm and top of pole removed due to damage.",null,null," - poles / columns (minor road)"]
[17,85,"2022-06-18","11:20:33",-38.045577147000003,145.11584657,"22 Tarella Rd, Chelsea VIC 3196, Australia",3304470,"CRM35","Low voltage AC (<1kV)","Urban"," - connection box","three phase","Started in or originated from a distribution system","LBRA only",0.2,"No forecast",0.1,2.0000000000000004E-2,1627729,"20220620UTD_01","UE received a call of a fire on a pole. On attendance, the UE fault crew found a pole mounted FOLCB had caught fire. The attending fault crew replaced the FOLCB.",null,null,"Other "]
[17,86,"2022-06-22","17:32:16",-37.933045743999998,145.15462410000001,"1688 Centre Rd, Springvale VIC 3171, Australia",629664,"SVW55","Low voltage AC (<1kV)","Urban"," - lamps (major road)","single phase","Started in or originated from a distribution system","LBRA only",0.2,"No forecast",0.1,2.0000000000000004E-2,1628801,"20220624UTD_01","On attending a report of a pole fire, the UE fault crew found a 150W Sodium street light lantern had failed and had severe fire damage internally. The street light lantern was replaced. ",null,null," - connection box"]
[0,87,null,null,null,null,null,null,null,null,null,null,null,null,null,"",null,"","",null,null,null,null,null," - earth / earthing"]
[0,88,null,null,null,null,null,null,null,null,null,null,null,null,null,"",null,"",""]
[0,89,null,null,null,null,null,null,null,null,null,null,null,null,null,"",null,"",""]
[0,90,null,null,null,null,null,null,null,null,null,null,null,null,null,"",null,"","",null,null,null,null,null,"Extra low voltage AC (<50V)"]
[0,91,null,null,null,null,null,null,null,null,null,null,null,null,null,"",null,"","",null,null,null,null,null,"Low voltage AC (<1kV)"]
[0,92,null,null,null,null,null,null,null,null,null,null,null,null,null,"",null,"","",null,null,null,null,null,"2.2kV AC"]
[0,93,null,null,null,null,null,null,null,null,null,null,null,null,null,"",null,"","",null,null,null,null,null,"6.6kV AC"]
[0,94,null,null,null,null,null,null,null,null,null,null,null,null,null,"",null,"","",null,null,null,null,null,"11kV AC"]
[0,95,null,null,null,null,null,null,null,null,null,null,null,null,null,"",null,"","",null,null,null,null,null,"12.7kV AC (SWER)"]
[0,96,null,null,null,null,null,null,null,null,null,null,null,null,null,"",null,"","",null,null,null,null,null,"22kV AC"]
[0,97,null,null,null,null,null,null,null,null,null,null,null,null,null,"",null,"","",null,null,null,null,null,"33kV AC"]
[0,98,null,null,null,null,null,null,null,null,null,null,null,null,null,"",null,"","",null,null,null,null,null,"66kV AC"]
[0,99,null,null,null,null,null,null,null,null,null,null,null,null,null,"",null,"","",null,null,null,null,null,"132kV AC"]
[0,100,null,null,null,null,null,null,null,null,null,null,null,null,null,"",null,"","",null,null,null,null,null,"220kV AC"]
[0,101,null,null,null,null,null,null,null,null,null,null,null,null,null,"",null,"","",null,null,null,null,null,"330kV AC"]
[0,102,null,null,null,null,null,null,null,null,null,null,null,null,null,"",null,"",{"$f":"IF(OR(P139=\"\",R139=\"\"),\"\",IF(AND(O139=\"within electric line construction area\",Q139=\"No forecast\"),1,P139*R139))","v":""},null,null,null,null,null,"500kV AC"]
[{"$f":"COUNTA(C140:O140,Q140,T140:V140)","v":0},103,null,null,null,null,null,null,null,null,null,null,null,null,null,{"$f":"IF(O140=\"\",\"\",IF(O140=\"LBRA only\",0.2,IF(O140=\"HBRA only\",1,IF(O140=\"within electric line construction area\",19.8,IF(O140=\"within area delineated on plan LEGL./16-354\",4.6,\"\")))))","v":""},null,{"$f":"IF(Q140=\"\",\"\",IF(Q140=\"No forecast\",0.1,IF(Q140=\"Low-moderate\",0.2,IF(Q140=\"High\",0.5,IF(Q140=\"Very high\",1,IF(Q140=\"Severe\",2,IF(Q140=\"Extreme\",3.5,5)))))))","v":""},"",null,null,null,null,null,"Extra low voltage DC (<120V ripple free)"]
[0,104,null,null,null,null,null,null,null,null,null,null,null,null,null,"",null,"","",null,null,null,null,null,"Low voltage DC (<1.5kV)"]
[0,105,null,null,null,null,null,null,null,null,null,null,null,null,null,"",null,"","",null,null,null,null,null,"600V DC"]
[0,106,null,null,null,null,null,null,null,null,null,null,null,null,null,"",null,"","",null,null,null,null,null,"1500V DC"]
[0,107,null,null,null,null,null,null,null,null,null,null,null,null,null,"",null,"","",null,null,null,null,null,"Earthing cable"]
[0,108,null,null,null,null,null,null,null,null,null,null,null,null,null,"",null,"",""]
[0,109,null,null,null,null,null,null,null,null,null,null,null,null,null,"",null,"",""]
[0,110,null,null,null,null,null,null,null,null,null,null,null,null,null,"",null,"","",null,null,null,null,null,"single wire earth return (SWER)"]
[0,111,null,null,null,null,null,null,null,null,null,null,null,null,null,"",null,"","",null,null,null,null,null,"single phase"]
[0,112,null,null,null,null,null,null,null,null,null,null,null,null,null,"",null,"","",null,null,null,null,null,"two phase"]
[0,113,null,null,null,null,null,null,null,null,null,null,null,null,null,"",null,"","",null,null,null,null,null,"three phase"]
[0,114,null,null,null,null,null,null,null,null,null,null,null,null,null,"",null,"",""]
[0,115,null,null,null,null,null,null,null,null,null,null,null,null,null,"",null,"",""]
[0,116,null,null,null,null,null,null,null,null,null,null,null,null,null,"",null,"","",null,null,null,null,null,"Negligible: no ground fire"]
[0,117,null,null,null,null,null,null,null,null,null,null,null,null,null,"",null,"","",null,null,null,null,null,"Localised: less than 10 sq.m"]
[0,118,null,null,null,null,null,null,null,null,null,null,null,null,null,"",null,"","",null,null,null,null,null,"Small: 10 - 1000 aq.m"]
[0,119,null,null,null,null,null,null,null,null,null,null,null,null,null,"",null,"","",null,null,null,null,null,"Medium: 1000 sq.m - 10 ha"]
[0,120,null,null,null,null,null,null,null,null,null,null,null,null,null,"",null,"","",null,null,null,null,null,"Large: more than 10 ha"]
[0,121,null,null,null,null,null,null,null,null,null,null,null,null,null,"",null,"",""]
[0,122,null,null,null,null,null,null,null,null,null,null,null,null,null,"",null,"",""]
[0,123,null,null,null,null,null,null,null,null,null,null,null,null,null,"",null,"","",null,null,null,null,null,"Started in or originated from a distribution system"]
[0,124,null,null,null,null,null,null,null,null,null,null,null,null,null,"",null,"","",null,null,null,null,null,"Started by any tree, or part of a tree, falling upon or coming into contact with a distribution system"]
[0,125,null,null,null,null,null,null,null,null,null,null,null,null,null,"",null,"","",null,null,null,null,null,"Started by any person, bird, reptile or other animal coming into contact with a distribution system"]
[0,126,null,null,null,null,null,null,null,null,null,null,null,null,null,"",null,"","",null,null,null,null,null,"Started by lightning striking a distribution system or a part of a distribution system "]
[0,127,null,null,null,null,null,null,null,null,null,null,null,null,null,"",null,"","",null,null,null,null,null,"Started by any other thing forming part of or coming into contact with a distribution system"]
[0,128,null,null,null,null,null,null,null,null,null,null,null,null,null,"",null,"","",null,null,null,null,null,"Otherwise started by a distribution system"]
[0,129,null,null,null,null,null,null,null,null,null,null,null,null,null,"",null,"",""]
[0,130,null,null,null,null,null,null,null,null,null,null,null,null,null,"",null,"",""]
[0,131,null,null,null,null,null,null,null,null,null,null,null,null,null,"",null,"","",null,null,null,null,null,1]
[0,132,null,null,null,null,null,null,null,null,null,null,null,null,null,"",null,"","",null,null,null,null,null,2]
[0,133,null,null,null,null,null,null,null,null,null,null,null,null,null,"",null,"","",null,null,null,null,null,3]
[0,134,null,null,null,null,null,null,null,null,null,null,null,null,null,"",null,"",{"$f":"IF(OR(P171=\"\",R171=\"\"),\"\",IF(AND(O171=\"within electric line construction area\",Q171=\"No forecast\"),1,P171*R171))","v":""},null,null,null,null,null,4]
[0,135,null,null,null,null,null,null,null,null,null,null,null,null,null,"",null,"","",null,null,null,null,null,5]
[0,136,null,null,null,null,null,null,null,null,null,null,null,null,null,"",null,"","",null,null,null,null,null,6]
[0,137,null,null,null,null,null,null,null,null,null,null,null,null,null,"",null,"","",null,null,null,null,null,7]
[0,138,null,null,null,null,null,null,null,null,null,null,null,null,null,"",null,"","",null,null,null,null,null,8]
[0,139,null,null,null,null,null,null,null,null,null,null,null,null,null,"",null,"","",null,null,null,null,null,9]
[0,140,null,null,null,null,null,null,null,null,null,null,null,null,null,"",null,"","",null,null,null,null,null,10]
[0,141,null,null,null,null,null,null,null,null,null,null,null,null,null,"",null,"","",null,null,null,null,null,{"$f":"Y177+1","v":11}]
[0,142,null,null,null,null,null,null,null,null,null,null,null,null,null,"",null,"","",null,null,null,null,null,{"$f":"Y178+1","v":12}]
[0,143,null,null,null,null,null,null,null,null,null,null,null,null,null,"",null,"","",null,null,null,null,null,13]
[0,144,null,null,null,null,null,null,null,null,null,null,null,null,null,"",null,"","",null,null,null,null,null,14]
[0,145,null,null,null,null,null,null,null,null,null,null,null,null,null,"",null,"","",null,null,null,null,null,15]
[0,146,null,null,null,null,null,null,null,null,null,null,null,null,null,"",null,"","",null,null,null,null,null,16]
[0,147,null,null,null,null,null,null,null,null,null,null,null,null,null,"",null,"","",null,null,null,null,null,17]
[0,148,null,null,null,null,null,null,null,null,null,null,null,null,null,"",null,"","",null,null,null,null,null,18]
[0,149,null,null,null,null,null,null,null,null,null,null,null,null,null,"",null,"","",null,null,null,null,null,19]
[0,150,null,null,null,null,null,null,null,null,null,null,null,null,null,"",null,"","",null,null,null,null,null,20]
[0,151,null,null,null,null,null,null,null,null,null,null,null,null,null,"",null,"",""]
[0,152,null,null,null,null,null,null,null,null,null,null,null,null,null,"",null,"",""]
[0,153,null,null,null,null,null,null,null,null,null,null,null,null,null,"",null,"",""]
[0,154,null,null,null,null,null,null,null,null,null,null,null,null,null,"",null,{"$f":"IF(Q191=\"\",\"\",IF(Q191=\"No forecast\",0.1,IF(Q191=\"Low-moderate\",0.2,IF(Q191=\"High\",0.5,IF(Q191=\"Very high\",1,IF(Q191=\"Severe\",2,IF(Q191=\"Extreme\",3.5,5)))))))","v":""},{"$f":"IF(OR(P191=\"\",R191=\"\"),\"\",IF(AND(O191=\"within electric line construction area\",Q191=\"No forecast\"),1,P191*R191))","v":""}]
[0,155,null,null,null,null,null,null,null,null,null,null,null,null,null,"",null,"",""]
[0,156,null,null,null,null,null,null,null,null,null,null,null,null,null,"",null,"",""]
[0,157,null,null,null,null,null,null,null,null,null,null,null,null,null,"",null,"",""]
[0,158,null,null,null,null,null,null,null,null,null,null,null,null,null,"",null,"",""]
[0,159,null,null,null,null,null,null,null,null,null,null,null,null,null,"",null,"",""]
[0,160,null,null,null,null,null,null,null,null,null,null,null,null,null,"",null,"",""]
[{"$f":"COUNTA(C198:O198,Q198,T198:V198)","v":0},161,null,null,null,null,null,null,null,null,null,null,null,null,null,"",null,"",""]
[{"$f":"COUNTA(C199:O199,Q199,T199:V199)","v":0},162,null,null,null,null,null,null,null,null,null,null,null,null,null,"",null,"",""]
[0,163,null,null,null,null,null,null,null,null,null,null,null,null,null,"",null,"",""]
[0,164,null,null,null,null,null,null,null,null,null,null,null,null,null,"",null,"",""]
[0,165,null,null,null,null,null,null,null,null,null,null,null,null,null,"",null,"",""]
[0,166,null,null,null,null,null,null,null,null,null,null,null,null,null,"",null,"",""]
[0,167,null,null,null,null,null,null,null,null,null,null,null,null,null,{"$f":"IF(O204=\"\",\"\",IF(O204=\"LBRA only\",0.2,IF(O204=\"HBRA only\",1,IF(O204=\"within electric line construction area\",19.8,IF(O204=\"within area delineated on plan LEGL./16-354\",4.6,\"\")))))","v":""},null,"",""]
[0,168,null,null,null,null,null,null,null,null,null,null,null,null,null,"",null,"",""]
[0,169,null,null,null,null,null,null,null,null,null,null,null,null,null,"",null,"",""]
[0,170,null,null,null,null,null,null,null,null,null,null,null,null,null,"",null,"",""]
[{"$f":"COUNTA(C208:O208,Q208,T208:V208)","v":0},171,null,null,null,null,null,null,null,null,null,null,null,null,null,"",null,"",""]
[{"$f":"COUNTA(C209:O209,Q209,T209:V209)","v":0},172,null,null,null,null,null,null,null,null,null,null,null,null,null,"",null,"",""]
[0,173,null,null,null,null,null,null,null,null,null,null,null,null,null,"",null,"",""]
[0,174,null,null,null,null,null,null,null,null,null,null,null,null,null,"",null,"",""]
[0,175,null,null,null,null,null,null,null,null,null,null,null,null,null,"",null,"",""]
[0,176,null,null,null,null,null,null,null,null,null,null,null,null,null,"",null,"",""]
[0,177,null,null,null,null,null,null,null,null,null,null,null,null,null,"",null,"",""]
[0,178,null,null,null,null,null,null,null,null,null,null,null,null,null,"",null,"",""]
[0,179,null,null,null,null,null,null,null,null,null,null,null,null,null,"",null,"",""]
[0,180,null,null,null,null,null,null,null,null,null,null,null,null,null,"",null,"",""]
[0,181,null,null,null,null,null,null,null,null,null,null,null,null,null,"",null,"",""]
[0,182,null,null,null,null,null,null,null,null,null,null,null,null,null,"",null,"",""]
[0,183,null,null,null,null,null,null,null,null,null,null,null,null,null,"",null,"",""]
[{"$f":"COUNTA(C221:O221,Q221,T221:V221)","v":0},184,null,null,null,null,null,null,null,null,null,null,null,null,null,"",null,"",""]
[{"$f":"COUNTA(C222:O222,Q222,T222:V222)","v":0},185,null,null,null,null,null,null,null,null,null,null,null,null,null,"",null,"",""]
[0,186,null,null,null,null,null,null,null,null,null,null,null,null,null,"",null,"",""]
[0,187,null,null,null,null,null,null,null,null,null,null,null,null,null,"",null,"",""]
[0,188,null,null,null,null,null,null,null,null,null,null,null,null,null,"",null,"",""]
[0,189,null,null,null,null,null,null,null,null,null,null,null,null,null,"",null,"",""]
[0,190,null,null,null,null,null,null,null,null,null,null,null,null,null,"",null,"",""]
[0,191,null,null,null,null,null,null,null,null,null,null,null,null,null,"",null,"",""]
[0,192,null,null,null,null,null,null,null,null,null,null,null,null,null,"",null,"",""]
[0,193,null,null,null,null,null,null,null,null,null,null,null,null,null,"",null,"",""]
[0,194,null,null,null,null,null,null,null,null,null,null,null,null,null,"",null,"",""]
[0,195,null,null,null,null,null,null,null,null,null,null,null,null,null,"",null,"",""]
[0,196,null,null,null,null,null,null,null,null,null,null,null,null,null,"",null,"",""]
[{"$f":"COUNTA(C234:O234,Q234,T234:V234)","v":0},197,null,null,null,null,null,null,null,null,null,null,null,null,null,{"$f":"IF(O234=\"\",\"\",IF(O234=\"LBRA only\",0.2,IF(O234=\"HBRA only\",1,IF(O234=\"within electric line construction area\",19.8,IF(O234=\"within area delineated on plan LEGL./16-354\",4.6,\"\")))))","v":""},null,{"$f":"IF(Q234=\"\",\"\",IF(Q234=\"No forecast\",0.1,IF(Q234=\"Low-moderate\",0.2,IF(Q234=\"High\",0.5,IF(Q234=\"Very high\",1,IF(Q234=\"Severe\",2,IF(Q234=\"Extreme\",3.5,5)))))))","v":""},{"$f":"IF(OR(P234=\"\",R234=\"\"),\"\",IF(AND(O234=\"within electric line construction area\",Q234=\"No forecast\"),1,P234*R234))","v":""}]
[{"$f":"COUNTA(C235:O235,Q235,T235:V235)","v":0},198,null,null,null,null,null,null,null,null,null,null,null,null,null,{"$f":"IF(O235=\"\",\"\",IF(O235=\"LBRA only\",0.2,IF(O235=\"HBRA only\",1,IF(O235=\"within electric line construction area\",19.8,IF(O235=\"within area delineated on plan LEGL./16-354\",4.6,\"\")))))","v":""},null,{"$f":"IF(Q235=\"\",\"\",IF(Q235=\"No forecast\",0.1,IF(Q235=\"Low-moderate\",0.2,IF(Q235=\"High\",0.5,IF(Q235=\"Very high\",1,IF(Q235=\"Severe\",2,IF(Q235=\"Extreme\",3.5,5)))))))","v":""},{"$f":"IF(OR(P235=\"\",R235=\"\"),\"\",IF(AND(O235=\"within electric line construction area\",Q235=\"No forecast\"),1,P235*R235))","v":""}]
[0,199,null,null,null,null,null,null,null,null,null,null,null,null,null,"",null,"",""]
[0,200,null,null,null,null,null,null,null,null,null,null,null,null,null,"",null,"",""]

{"sheet":"3. Systems and Audit","index":4,"n_rows":29,"n_cols":5,"rows_kept":29,"cut":false,"hidden":false,"merged":[[28,1,29,4],[3,5,3,6],[4,5,4,6],[5,5,5,6],[6,1,6,4],[9,1,9,4],[14,1,14,4],[10,1,10,4],[13,1,13,4],[12,1,12,4],[11,1,11,4]]}
[null,{"$f":"IF(Cover!D27=\"\",\"[DNSP Name]\", Cover!D27)","v":"United Energy"}]
[null,"F-factor data reporting"]
[null,{"$f":"IF(Cover!D33=\"\",\"[Year]\",Cover!D33)","v":"2021/22"}]
[]
[]
[null,"Instructions:"]
[]
[null,{"$f":"IF(Cover!D27=\"\",\"[DNSP Name] must provide:\", CONCATENATE(Cover!D27,\" must provide:\"))","v":"United Energy must provide:"}]
[]
[null,"Table 4 - Information or reporting systems"]
[null,"   (1) Name of any IT system used to collect fire start data or fault event data - i.e. SCADA system, or fault reporting system"]
[null,"   (2) Whether the fire recording or fault recording process has been audited or complies with a relevant Australian or industry standard - Yes or No"]
[null,"   (3) List any relevant Australian or industry standards that the fire recording or fault recording process complies with"]
[null,"   (4) Whether the data entered into or removed from the IT system has been audited - Yes or No"]
[]
[]
[null,"Table 4: Information or reporting systems"]
[]
[null,"Information or reporting systems","Name","System Audited","Relevant Standards"]
[null,"System 1"]
[null,"System 2"]
[null,"System 3 "]
[null,"System 4"]
[null,"System 5"]
[null,"System 6"]
[null,"System 7"]
[null,"System 8"]
[]
[null,"The SGSPAA Internal Audit function undertakes a programme of work in accordance with the SGSPAA Group Internal Audit Plan. This internal audit activity covers elements of the systems and process used for capturing, recording and maintaining fire start data."]